[Event "December 19 Early 2023"]
[Site "https://www.chess.com"]
[Date "2023.12.19"]
[Round "8"]
[White "Novikov, Evgenij"]
[Black "Klukin, Kirill"]
[Result "1-0"]
[Board "59"]
[TimeControl "180+1"]
[WhiteFideId "4125380"]
[BlackFideId "24199273"]
[WhiteElo "2242"]
[BlackElo "2348"]
[WhiteTeam "RUS"]
[BlackTeam "RUS"]
[WhiteClock "0:00:13"]
[BlackClock "0:00:03"]

1. d4 {[%clk 0:03:00]}  Nf6 {[%clk 0:02:58]} 2. c4 {[%clk 0:02:59]}  Nc6 {[%clk 0:02:58]} 3. Nf3 {[%clk 0:02:53]}  e6 {[%clk 0:02:58]} 4. e3 {[%clk 0:02:51]}  Bb4+ {[%clk 0:02:58]} 5. Bd2 {[%clk 0:02:51]}  Qe7 {[%clk 0:02:58]} 6. Bxb4 {[%clk 0:02:36]}  Qxb4+ {[%clk 0:02:52]} 7. Qd2 {[%clk 0:02:36]}  Ne4 {[%clk 0:02:39]} 8. Qxb4 {[%clk 0:02:35]}  Nxb4 {[%clk 0:02:40]} 9. Na3 {[%clk 0:02:32]}  d6 {[%clk 0:02:37]} 10. Nd2 {[%clk 0:02:29]}  Nf6 {[%clk 0:02:24]} 11. Be2 {[%clk 0:02:23]}  b6 {[%clk 0:02:14]} 12. Bf3 {[%clk 0:02:15]}  c6 {[%clk 0:02:07]} 13. O-O {[%clk 0:02:14]}  Bb7 {[%clk 0:01:55]} 14. Nb5 {[%clk 0:02:04]}  Ke7 {[%clk 0:01:31]} 15. Nc3 {[%clk 0:02:01]}  a5 {[%clk 0:01:02]} 16. a3 {[%clk 0:01:59]}  Na6 {[%clk 0:01:02]} 17. Rab1 {[%clk 0:01:58]}  Nc7 {[%clk 0:00:57]} 18. Rfc1 {[%clk 0:01:51]}  Rhb8 {[%clk 0:00:56]} 19. b3 {[%clk 0:01:49]}  c5 {[%clk 0:00:53]} 20. a4 {[%clk 0:01:38]}  cxd4 {[%clk 0:00:41]} 21. exd4 {[%clk 0:01:37]}  d5 {[%clk 0:00:42]} 22. Nb5 {[%clk 0:01:05]}  Nxb5 {[%clk 0:00:34]} 23. axb5 {[%clk 0:01:06]}  dxc4 {[%clk 0:00:18]} 24. bxc4 {[%clk 0:01:06]}  a4 {[%clk 0:00:07]} 25. Kf1 {[%clk 0:01:05]}  a3 {[%clk 0:00:07]} 26. Ke2 {[%clk 0:01:05]}  Bxf3+ {[%clk 0:00:06]} 27. Nxf3 {[%clk 0:01:06]}  Nd7 {[%clk 0:00:04]} 28. Kd3 {[%clk 0:00:59]}  Rc8 {[%clk 0:00:04]} 29. Rc2 {[%clk 0:00:54]}  f6 {[%clk 0:00:03]} 30. Ra2 {[%clk 0:00:46]}  e5 {[%clk 0:00:03]} 31. Rb3 {[%clk 0:00:38]}  Ra4 {[%clk 0:00:03]} 32. Rbxa3 {[%clk 0:00:25]}  Raxc4 {[%clk 0:00:03]} 33. dxe5 {[%clk 0:00:25]}  fxe5 {[%clk 0:00:03]} 34. Ke3 {[%clk 0:00:21]}  Kf6 {[%clk 0:00:03]} 35. Ra7 {[%clk 0:00:20]}  Rc3+ {[%clk 0:00:03]} 36. Ke2 {[%clk 0:00:20]}  Nc5 {[%clk 0:00:04]} 37. Nd2 {[%clk 0:00:19]}  Ke6 {[%clk 0:00:02]} 38. Rxg7 {[%clk 0:00:17]}  Rf8 {[%clk 0:00:01]} 39. Raa7 {[%clk 0:00:16]}  Nd3 {[%clk 0:00:02]} 40. Rae7+ {[%clk 0:00:15]}  Kf6 {[%clk 0:00:01]} 41. Ne4+ {[%clk 0:00:14]}  Kf5 {[%clk 0:00:01]} 42. Nxc3 {[%clk 0:00:13]}  Nf4+ {[%clk 0:00:02]} 43. Kf1 {[%clk 0:00:13]}  Rc8 {[%clk 0:00:03]} 44. g4+ {[%clk 0:00:13]}  Kf6 {[%clk 0:00:03]} 45. Ne4# {[%clk 0:00:13]} 1-0

[Event "December 19 Early 2023"]
[Site "https://www.chess.com"]
[Date "2023.12.19"]
[Round "8"]
[White "Dyachuk, Artem"]
[Black "Smolka, Marcin"]
[Result "1-0"]
[Board "60"]
[TimeControl "180+1"]
[WhiteFideId "34107924"]
[BlackFideId "1139681"]
[WhiteElo "2244"]
[BlackElo "2117"]
[WhiteTeam "UKR"]
[BlackTeam "POL"]
[WhiteClock "0:02:08"]
[BlackClock "0:01:50"]

1. e4 {[%clk 0:03:00]}  c5 {[%clk 0:02:59]} 2. Nf3 {[%clk 0:03:00]}  e6 {[%clk 0:03:00]} 3. d4 {[%clk 0:03:00]}  cxd4 {[%clk 0:03:01]} 4. Nxd4 {[%clk 0:03:01]}  Nc6 {[%clk 0:03:01]} 5. Nc3 {[%clk 0:03:02]}  Qc7 {[%clk 0:03:02]} 6. g3 {[%clk 0:03:00]}  a6 {[%clk 0:03:01]} 7. Bg2 {[%clk 0:02:58]}  b5 {[%clk 0:03:00]} 8. O-O {[%clk 0:02:55]}  Bb7 {[%clk 0:03:00]} 9. Re1 {[%clk 0:02:54]}  Bc5 {[%clk 0:02:56]} 10. Nxc6 {[%clk 0:02:44]}  dxc6 {[%clk 0:02:53]} 11. e5 {[%clk 0:02:39]}  Rd8 {[%clk 0:02:22]} 12. Qg4 {[%clk 0:02:38]}  Kf8 {[%clk 0:02:19]} 13. Ne4 {[%clk 0:02:35]}  Be7 {[%clk 0:02:18]} 14. Bf4 {[%clk 0:02:34]}  h5 {[%clk 0:02:18]} 15. Qe2 {[%clk 0:02:31]}  Nh6 {[%clk 0:02:14]} 16. Nd6 {[%clk 0:02:30]}  Nf5 {[%clk 0:02:06]} 17. Nxf5 {[%clk 0:02:24]}  exf5 {[%clk 0:02:05]} 18. e6 {[%clk 0:02:24]}  Bd6 {[%clk 0:01:58]} 19. Rad1 {[%clk 0:02:14]}  Bxf4 {[%clk 0:01:50]} 20. e7+ {[%clk 0:02:08]} 1-0

[Event "December 19 Early 2023"]
[Site "https://www.chess.com"]
[Date "2023.12.19"]
[Round "8"]
[White "Souleidis, Georgios"]
[Black "Suyarov, Mukhammadzokhid"]
[Result "0-1"]
[Board "61"]
[TimeControl "180+1"]
[WhiteFideId "4206827"]
[BlackFideId "14210495"]
[WhiteElo "2401"]
[BlackElo "2449"]
[WhiteTeam "GRE"]
[BlackTeam "UZB"]
[WhiteClock "0:00:00"]
[BlackClock "0:01:39"]

1. e4 {[%clk 0:02:57]}  e6 {[%clk 0:02:58]} 2. d4 {[%clk 0:02:57]}  d6 {[%clk 0:02:58]} 3. Nc3 {[%clk 0:02:57]}  Nd7 {[%clk 0:02:56]} 4. Nf3 {[%clk 0:02:57]}  Ne7 {[%clk 0:02:52]} 5. Bd3 {[%clk 0:02:56]}  c5 {[%clk 0:02:49]} 6. O-O {[%clk 0:02:56]}  Ng6 {[%clk 0:02:45]} 7. Re1 {[%clk 0:02:55]}  cxd4 {[%clk 0:02:44]} 8. Nxd4 {[%clk 0:02:55]}  Be7 {[%clk 0:02:41]} 9. Bf1 {[%clk 0:02:39]}  O-O {[%clk 0:02:38]} 10. g3 {[%clk 0:02:31]}  Nf6 {[%clk 0:02:29]} 11. Bg2 {[%clk 0:02:28]}  Bd7 {[%clk 0:02:26]} 12. h4 {[%clk 0:02:28]}  Ne5 {[%clk 0:02:22]} 13. b3 {[%clk 0:02:02]}  Rc8 {[%clk 0:02:18]} 14. Bb2 {[%clk 0:02:02]}  Qa5 {[%clk 0:02:16]} 15. Nce2 {[%clk 0:01:37]}  Neg4 {[%clk 0:02:13]} 16. c4 {[%clk 0:01:28]}  e5 {[%clk 0:02:11]} 17. Nc2 {[%clk 0:01:07]}  Qb6 {[%clk 0:02:07]} 18. Rf1 {[%clk 0:01:04]}  d5 {[%clk 0:02:07]} 19. exd5 {[%clk 0:00:59]}  Bc5 {[%clk 0:02:01]} 20. Qe1 {[%clk 0:00:59]}  Nxf2 {[%clk 0:01:59]} 21. Rxf2 {[%clk 0:00:52]}  Ng4 {[%clk 0:02:00]} 22. Ncd4 {[%clk 0:00:39]}  exd4 {[%clk 0:02:00]} 23. Rf4 {[%clk 0:00:32]}  d3+ {[%clk 0:01:58]} 24. Nd4 {[%clk 0:00:33]}  Rce8 {[%clk 0:01:56]} 25. Qd2 {[%clk 0:00:33]}  Re2 {[%clk 0:01:52]} 26. Qxd3 {[%clk 0:00:21]}  Rxb2 {[%clk 0:01:48]} 27. Raf1 {[%clk 0:00:19]}  Qb4 {[%clk 0:01:39]} 28. Kh1 {[%clk 0:00:00]}  Rd2 {[%clk 0:01:39]} 0-1

[Event "December 19 Early 2023"]
[Site "https://www.chess.com"]
[Date "2023.12.19"]
[Round "8"]
[White "Chan, Yi Ren Daniel"]
[Black "Belov, Alexei"]
[Result "0-1"]
[Board "62"]
[TimeControl "180+1"]
[WhiteFideId "5801583"]
[BlackFideId "4128206"]
[WhiteElo "2375"]
[BlackElo "2580"]
[WhiteTeam "SGP"]
[BlackTeam "RUS"]
[WhiteClock "0:00:05"]
[BlackClock "0:00:57"]

1. e4 {[%clk 0:03:00]}  e6 {[%clk 0:02:59]} 2. Nf3 {[%clk 0:03:01]}  d5 {[%clk 0:02:59]} 3. Nc3 {[%clk 0:03:02]}  Nf6 {[%clk 0:02:59]} 4. e5 {[%clk 0:03:02]}  Nfd7 {[%clk 0:03:00]} 5. d4 {[%clk 0:03:03]}  c5 {[%clk 0:03:00]} 6. dxc5 {[%clk 0:03:04]}  Nc6 {[%clk 0:03:00]} 7. Bf4 {[%clk 0:03:05]}  Bxc5 {[%clk 0:03:01]} 8. Bd3 {[%clk 0:03:05]}  f6 {[%clk 0:03:01]} 9. exf6 {[%clk 0:03:05]}  Nxf6 {[%clk 0:03:02]} 10. Qe2 {[%clk 0:03:03]}  O-O {[%clk 0:03:02]} 11. O-O-O {[%clk 0:02:57]}  Bd7 {[%clk 0:03:02]} 12. Bg5 {[%clk 0:02:56]}  Qa5 {[%clk 0:02:57]} 13. Ne5 {[%clk 0:02:39]}  Nxe5 {[%clk 0:02:43]} 14. Qxe5 {[%clk 0:02:39]}  Bxf2 {[%clk 0:02:42]} 15. Rhf1 {[%clk 0:02:30]}  Qb6 {[%clk 0:02:37]} 16. Rd2 {[%clk 0:01:28]}  Bd4 {[%clk 0:02:33]} 17. Qg3 {[%clk 0:01:09]}  Ne4 {[%clk 0:02:16]} 18. Rxf8+ {[%clk 0:00:55]}  Rxf8 {[%clk 0:02:16]} 19. Bxe4 {[%clk 0:00:51]}  dxe4 {[%clk 0:02:16]} 20. Rd1 {[%clk 0:00:36]}  Bc6 {[%clk 0:02:05]} 21. Be7 {[%clk 0:00:34]}  Re8 {[%clk 0:01:57]} 22. Bg5 {[%clk 0:00:30]}  e3 {[%clk 0:01:54]} 23. Rd3 {[%clk 0:00:13]}  e2 {[%clk 0:01:50]} 24. Nxe2 {[%clk 0:00:13]}  Bxb2+ {[%clk 0:01:45]} 25. Kd1 {[%clk 0:00:13]}  Bb5 {[%clk 0:01:45]} 26. Rd6 {[%clk 0:00:11]}  Qc5 {[%clk 0:01:39]} 27. Be3 {[%clk 0:00:11]}  Bxe2+ {[%clk 0:01:34]} 28. Kxe2 {[%clk 0:00:11]}  Qxc2+ {[%clk 0:01:35]} 29. Rd2 {[%clk 0:00:12]}  Qc4+ {[%clk 0:01:34]} 30. Kd1 {[%clk 0:00:12]}  Qc1+ {[%clk 0:01:28]} 31. Ke2 {[%clk 0:00:13]}  Bc3 {[%clk 0:01:28]} 32. Rd7 {[%clk 0:00:06]}  Qc2+ {[%clk 0:01:28]} 33. Bd2 {[%clk 0:00:04]}  Qe4+ {[%clk 0:01:14]} 34. Be3 {[%clk 0:00:04]}  Qc4+ {[%clk 0:01:11]} 35. Kd1 {[%clk 0:00:05]}  Qxa2 {[%clk 0:01:05]} 36. Bd2 {[%clk 0:00:02]}  Qb1+ {[%clk 0:01:04]} 37. Ke2 {[%clk 0:00:03]}  Qe4+ {[%clk 0:01:04]} 38. Kd1 {[%clk 0:00:04]}  Qa4+ {[%clk 0:01:04]} 39. Ke2 {[%clk 0:00:04]}  Qxd7 {[%clk 0:01:04]} 40. Bxc3 {[%clk 0:00:04]}  e5 {[%clk 0:01:05]} 41. Qe3 {[%clk 0:00:03]}  e4 {[%clk 0:01:03]} 42. Qg5 {[%clk 0:00:03]}  Qd3+ {[%clk 0:01:02]} 43. Kf2 {[%clk 0:00:04]}  Qxc3 {[%clk 0:01:03]} 44. Qh5 {[%clk 0:00:04]}  Rf8+ {[%clk 0:01:00]} 45. Ke2 {[%clk 0:00:05]}  Qd3+ {[%clk 0:00:57]} 46. Ke1 {[%clk 0:00:05]}  Rf1# {[%clk 0:00:57]} 0-1

[Event "December 19 Early 2023"]
[Site "https://www.chess.com"]
[Date "2023.12.19"]
[Round "8"]
[White "Postny, Evgeny"]
[Black "Deng, Henry"]
[Result "1-0"]
[Board "63"]
[TimeControl "180+1"]
[WhiteFideId "2804344"]
[BlackFideId "30965454"]
[WhiteElo "2505"]
[BlackElo "2579"]
[WhiteTeam "ISR"]
[BlackTeam "USA"]
[WhiteClock "0:01:47"]
[BlackClock "0:01:34"]

1. e4 {[%clk 0:03:00]}  c5 {[%clk 0:02:58]} 2. Nf3 {[%clk 0:03:00]}  e6 {[%clk 0:02:59]} 3. d4 {[%clk 0:03:01]}  cxd4 {[%clk 0:03:00]} 4. Nxd4 {[%clk 0:03:01]}  Nf6 {[%clk 0:03:00]} 5. Nc3 {[%clk 0:03:00]}  Nc6 {[%clk 0:03:01]} 6. Nxc6 {[%clk 0:02:58]}  bxc6 {[%clk 0:03:02]} 7. e5 {[%clk 0:02:58]}  Nd5 {[%clk 0:03:01]} 8. Ne4 {[%clk 0:02:58]}  Bb7 {[%clk 0:03:02]} 9. Bd3 {[%clk 0:02:57]}  c5 {[%clk 0:03:01]} 10. O-O {[%clk 0:02:56]}  Qc7 {[%clk 0:03:00]} 11. f4 {[%clk 0:02:48]}  c4 {[%clk 0:02:53]} 12. Be2 {[%clk 0:02:49]}  Be7 {[%clk 0:02:51]} 13. Kh1 {[%clk 0:02:48]}  O-O {[%clk 0:02:51]} 14. Bf3 {[%clk 0:02:47]}  f5 {[%clk 0:02:37]} 15. exf6 {[%clk 0:02:44]}  Nxf6 {[%clk 0:02:36]} 16. Qe2 {[%clk 0:02:42]}  Nxe4 {[%clk 0:02:28]} 17. Bxe4 {[%clk 0:02:43]}  Rac8 {[%clk 0:02:28]} 18. Bd2 {[%clk 0:02:34]}  Bxe4 {[%clk 0:02:25]} 19. Qxe4 {[%clk 0:02:33]}  Qc6 {[%clk 0:02:25]} 20. Qe2 {[%clk 0:02:28]}  Bf6 {[%clk 0:02:20]} 21. Rab1 {[%clk 0:02:27]}  Qa4 {[%clk 0:02:17]} 22. Bc3 {[%clk 0:02:17]}  Qxa2 {[%clk 0:02:13]} 23. Ra1 {[%clk 0:02:15]}  Qxa1 {[%clk 0:01:57]} 24. Rxa1 {[%clk 0:02:14]}  Bxc3 {[%clk 0:01:57]} 25. bxc3 {[%clk 0:02:14]}  Rc7 {[%clk 0:01:56]} 26. g3 {[%clk 0:02:09]}  Re8 {[%clk 0:01:54]} 27. Qe5 {[%clk 0:02:08]}  Rb7 {[%clk 0:01:54]} 28. Qc5 {[%clk 0:02:06]}  d5 {[%clk 0:01:52]} 29. Rxa7 {[%clk 0:02:04]}  Rxa7 {[%clk 0:01:52]} 30. Qxa7 {[%clk 0:02:05]}  Kf8 {[%clk 0:01:45]} 31. Qd7 {[%clk 0:02:04]}  Re7 {[%clk 0:01:45]} 32. Qd6 {[%clk 0:02:04]}  Kf7 {[%clk 0:01:45]} 33. f5 {[%clk 0:02:03]}  exf5 {[%clk 0:01:43]} 34. Qxd5+ {[%clk 0:02:03]}  Kf6 {[%clk 0:01:44]} 35. Qxc4 {[%clk 0:02:02]}  Re1+ {[%clk 0:01:44]} 36. Kg2 {[%clk 0:02:02]}  Rc1 {[%clk 0:01:45]} 37. Qd4+ {[%clk 0:01:59]}  Kg6 {[%clk 0:01:45]} 38. Qd6+ {[%clk 0:01:57]}  Kh5 {[%clk 0:01:43]} 39. Qd2 {[%clk 0:01:55]}  Rb1 {[%clk 0:01:41]} 40. c4 {[%clk 0:01:55]}  Rb8 {[%clk 0:01:40]} 41. c5 {[%clk 0:01:53]}  Rc8 {[%clk 0:01:40]} 42. Qe2+ {[%clk 0:01:51]}  Kg5 {[%clk 0:01:39]} 43. Qe7+ {[%clk 0:01:48]}  Kg4 {[%clk 0:01:34]} 44. Qh4# {[%clk 0:01:47]} 1-0

[Event "December 19 Early 2023"]
[Site "https://www.chess.com"]
[Date "2023.12.19"]
[Round "8"]
[White "Andreev, Konstantin"]
[Black "Leiva, Gianmarco"]
[Result "1-0"]
[Board "66"]
[TimeControl "180+1"]
[WhiteFideId "24239305"]
[BlackFideId "3804399"]
[WhiteElo "2093"]
[BlackElo "2338"]
[WhiteTeam "ITA"]
[BlackTeam "PER"]
[WhiteClock "0:01:45"]
[BlackClock "0:00:00"]

1. e4 {[%clk 0:03:00]}  c5 {[%clk 0:02:58]} 2. Nf3 {[%clk 0:02:58]}  d6 {[%clk 0:02:58]} 3. d4 {[%clk 0:02:55]}  cxd4 {[%clk 0:02:59]} 4. Nxd4 {[%clk 0:02:53]}  Nf6 {[%clk 0:03:00]} 5. Nc3 {[%clk 0:02:53]}  a6 {[%clk 0:03:00]} 6. h4 {[%clk 0:02:53]}  e5 {[%clk 0:02:35]} 7. Nb3 {[%clk 0:02:49]}  Be7 {[%clk 0:01:55]} 8. Bg5 {[%clk 0:02:45]}  Be6 {[%clk 0:01:53]} 9. Bxf6 {[%clk 0:02:44]}  Bxf6 {[%clk 0:01:53]} 10. g3 {[%clk 0:02:45]}  Be7 {[%clk 0:01:51]} 11. Qd3 {[%clk 0:02:46]}  Nd7 {[%clk 0:01:47]} 12. O-O-O {[%clk 0:02:46]}  Nf6 {[%clk 0:01:42]} 13. f4 {[%clk 0:02:45]}  b5 {[%clk 0:01:40]} 14. Kb1 {[%clk 0:02:44]}  Qb6 {[%clk 0:01:26]} 15. f5 {[%clk 0:02:41]}  Bc4 {[%clk 0:01:22]} 16. Qf3 {[%clk 0:02:41]}  Rb8 {[%clk 0:01:20]} 17. g4 {[%clk 0:02:40]}  Bxf1 {[%clk 0:00:30]} 18. Rhxf1 {[%clk 0:02:37]}  b4 {[%clk 0:00:30]} 19. Ne2 {[%clk 0:02:33]}  a5 {[%clk 0:00:24]} 20. g5 {[%clk 0:02:32]}  Nd7 {[%clk 0:00:24]} 21. Ng3 {[%clk 0:02:32]}  a4 {[%clk 0:00:20]} 22. Nc1 {[%clk 0:02:32]}  Nc5 {[%clk 0:00:07]} 23. Nh5 {[%clk 0:02:28]}  Bf8 {[%clk 0:00:07]} 24. g6 {[%clk 0:01:59]}  f6 {[%clk 0:00:07]} 25. gxh7 {[%clk 0:01:59]}  Rxh7 {[%clk 0:00:07]} 26. Qg4 {[%clk 0:01:59]}  Kd8 {[%clk 0:00:02]} 27. Qg6 {[%clk 0:01:55]}  Rh6 {[%clk 0:00:02]} 28. Qf7 {[%clk 0:01:56]}  Rxh5 {[%clk 0:00:01]} 29. Qxf8+ {[%clk 0:01:54]}  Kc7 {[%clk 0:00:01]} 30. Qf7+ {[%clk 0:01:55]}  Kc6 {[%clk 0:00:01]} 31. Qxh5 {[%clk 0:01:55]}  b3 {[%clk 0:00:02]} 32. cxb3 {[%clk 0:01:54]}  axb3 {[%clk 0:00:02]} 33. a3 {[%clk 0:01:53]}  Nxe4 {[%clk 0:00:02]} 34. Qf3 {[%clk 0:01:50]}  d5 {[%clk 0:00:03]} 35. Qd3 {[%clk 0:01:47]}  Qc5 {[%clk 0:00:01]} 36. Nxb3 {[%clk 0:01:45]}  Qc4 {[%clk 0:00:00]} 37. Rc1 {[%clk 0:01:45]} 1-0

[Event "December 19 Early 2023"]
[Site "https://www.chess.com"]
[Date "2023.12.19"]
[Round "8"]
[White "Adla, Diego"]
[Black "Iljin, Timofey"]
[Result "1-0"]
[Board "70"]
[TimeControl "180+1"]
[WhiteFideId "100072"]
[BlackFideId "14110180"]
[WhiteElo "2377"]
[BlackElo "2380"]
[WhiteTeam "ARG"]
[BlackTeam "UKR"]
[WhiteClock "0:01:30"]
[BlackClock "0:02:11"]

1. c4 {[%clk 0:02:55]}  f5 {[%clk 0:03:00]} 2. Nc3 {[%clk 0:02:49]}  Nf6 {[%clk 0:03:00]} 3. g3 {[%clk 0:02:35]}  g6 {[%clk 0:03:00]} 4. h4 {[%clk 0:02:34]}  Bg7 {[%clk 0:03:01]} 5. Nh3 {[%clk 0:02:33]}  O-O {[%clk 0:03:00]} 6. Bg2 {[%clk 0:02:33]}  e5 {[%clk 0:03:00]} 7. d4 {[%clk 0:02:01]}  d6 {[%clk 0:02:58]} 8. Bg5 {[%clk 0:01:50]}  h6 {[%clk 0:02:55]} 9. dxe5 {[%clk 0:01:47]}  hxg5 {[%clk 0:02:48]} 10. exf6 {[%clk 0:01:44]}  Qxf6 {[%clk 0:02:49]} 11. hxg5 {[%clk 0:01:41]}  Qe7 {[%clk 0:02:43]} 12. Nf4 {[%clk 0:01:40]}  Bxc3+ {[%clk 0:02:35]} 13. bxc3 {[%clk 0:01:39]}  Kg7 {[%clk 0:02:36]} 14. Nd5 {[%clk 0:01:34]}  Qf7 {[%clk 0:02:11]} 15. Qd4+ {[%clk 0:01:30]} 1-0

[Event "December 19 Early 2023"]
[Site "https://www.chess.com"]
[Date "2023.12.19"]
[Round "8"]
[White "Hirneise, Jens"]
[Black "Khumalo, Keith"]
[Result "0-1"]
[Board "72"]
[TimeControl "180+1"]
[WhiteFideId "24614734"]
[BlackFideId "14319470"]
[WhiteElo "2311"]
[BlackElo "2093"]
[WhiteTeam "GER"]
[BlackTeam "RSA"]
[WhiteClock "0:00:04"]
[BlackClock "0:01:24"]

1. e4 {[%clk 0:03:00]}  c5 {[%clk 0:03:00]} 2. Nc3 {[%clk 0:02:57]}  g6 {[%clk 0:03:00]} 3. g3 {[%clk 0:02:57]}  Bg7 {[%clk 0:02:59]} 4. Bg2 {[%clk 0:02:58]}  Nc6 {[%clk 0:03:00]} 5. Nge2 {[%clk 0:02:58]}  d6 {[%clk 0:02:59]} 6. d3 {[%clk 0:02:57]}  Rb8 {[%clk 0:03:00]} 7. Be3 {[%clk 0:02:56]}  Nd4 {[%clk 0:03:00]} 8. O-O {[%clk 0:02:51]}  e6 {[%clk 0:03:00]} 9. f4 {[%clk 0:02:46]}  Ne7 {[%clk 0:03:00]} 10. Qd2 {[%clk 0:02:45]}  O-O {[%clk 0:03:00]} 11. Nd1 {[%clk 0:02:45]}  b5 {[%clk 0:03:00]} 12. c3 {[%clk 0:02:41]}  Nxe2+ {[%clk 0:03:00]} 13. Qxe2 {[%clk 0:02:42]}  b4 {[%clk 0:03:00]} 14. d4 {[%clk 0:02:39]}  bxc3 {[%clk 0:02:57]} 15. bxc3 {[%clk 0:02:39]}  cxd4 {[%clk 0:02:58]} 16. cxd4 {[%clk 0:02:37]}  Qa5 {[%clk 0:02:57]} 17. Rf2 {[%clk 0:02:27]}  Ba6 {[%clk 0:02:57]} 18. Qd2 {[%clk 0:02:26]}  Qa3 {[%clk 0:02:50]} 19. Qc3 {[%clk 0:02:16]}  Qa4 {[%clk 0:02:39]} 20. Nb2 {[%clk 0:02:10]}  Qb5 {[%clk 0:02:34]} 21. Bf1 {[%clk 0:02:07]}  Qb7 {[%clk 0:02:31]} 22. Bg2 {[%clk 0:01:58]}  Rfc8 {[%clk 0:02:30]} 23. Qa3 {[%clk 0:01:58]}  d5 {[%clk 0:02:14]} 24. Nd3 {[%clk 0:01:39]}  Bxd3 {[%clk 0:02:10]} 25. Qxd3 {[%clk 0:01:40]}  dxe4 {[%clk 0:02:09]} 26. Bxe4 {[%clk 0:01:41]}  Nd5 {[%clk 0:02:09]} 27. a4 {[%clk 0:01:23]}  Rc3 {[%clk 0:02:09]} 28. Bxd5 {[%clk 0:01:17]}  Rxd3 {[%clk 0:02:09]} 29. Bxb7 {[%clk 0:01:17]}  Rxb7 {[%clk 0:02:10]} 30. Re1 {[%clk 0:01:11]}  Rbb3 {[%clk 0:02:08]} 31. Rfe2 {[%clk 0:01:09]}  Rxe3 {[%clk 0:02:05]} 32. Rxe3 {[%clk 0:01:10]}  Bxd4 {[%clk 0:02:06]} 33. Kf2 {[%clk 0:01:10]}  Ra3 {[%clk 0:02:06]} 34. Kf3 {[%clk 0:01:03]}  Bxe3 {[%clk 0:02:02]} 35. Rxe3 {[%clk 0:01:04]}  Rxa4 {[%clk 0:01:59]} 36. Rb3 {[%clk 0:01:03]}  h5 {[%clk 0:01:59]} 37. h3 {[%clk 0:01:03]}  a5 {[%clk 0:01:56]} 38. g4 {[%clk 0:01:02]}  hxg4+ {[%clk 0:01:57]} 39. hxg4 {[%clk 0:01:02]}  Ra1 {[%clk 0:01:56]} 40. g5 {[%clk 0:01:02]}  a4 {[%clk 0:01:56]} 41. Rb8+ {[%clk 0:01:02]}  Kg7 {[%clk 0:01:56]} 42. Ra8 {[%clk 0:01:00]}  a3 {[%clk 0:01:55]} 43. Kg2 {[%clk 0:00:57]}  a2 {[%clk 0:01:56]} 44. Kh2 {[%clk 0:00:52]}  Rf1 {[%clk 0:01:54]} 45. Rxa2 {[%clk 0:00:51]}  Rxf4 {[%clk 0:01:55]} 46. Kg3 {[%clk 0:00:51]}  Rb4 {[%clk 0:01:54]} 47. Ra5 {[%clk 0:00:50]}  Rd4 {[%clk 0:01:52]} 48. Ra7 {[%clk 0:00:47]}  Kf8 {[%clk 0:01:52]} 49. Kf3 {[%clk 0:00:47]}  Ke8 {[%clk 0:01:47]} 50. Kg3 {[%clk 0:00:46]}  Rd7 {[%clk 0:01:44]} 51. Ra8+ {[%clk 0:00:41]}  Ke7 {[%clk 0:01:44]} 52. Kf4 {[%clk 0:00:40]}  Rd4+ {[%clk 0:01:44]} 53. Ke5 {[%clk 0:00:38]}  Rd5+ {[%clk 0:01:44]} 54. Kf4 {[%clk 0:00:38]}  Rf5+ {[%clk 0:01:45]} 55. Kg4 {[%clk 0:00:38]}  Rd5 {[%clk 0:01:39]} 56. Kf4 {[%clk 0:00:36]}  e5+ {[%clk 0:01:39]} 57. Ke4 {[%clk 0:00:36]}  Rb5 {[%clk 0:01:37]} 58. Ra6 {[%clk 0:00:35]}  Kf8 {[%clk 0:01:34]} 59. Rc6 {[%clk 0:00:31]}  Ke7 {[%clk 0:01:33]} 60. Ra6 {[%clk 0:00:31]}  Rc5 {[%clk 0:01:33]} 61. Rb6 {[%clk 0:00:30]}  Kd7 {[%clk 0:01:34]} 62. Rf6 {[%clk 0:00:28]}  Ke7 {[%clk 0:01:31]} 63. Ra6 {[%clk 0:00:28]}  Rc1 {[%clk 0:01:27]} 64. Kxe5 {[%clk 0:00:24]}  Rf1 {[%clk 0:01:27]} 65. Ra7+ {[%clk 0:00:19]}  Kf8 {[%clk 0:01:28]} 66. Ke4 {[%clk 0:00:12]}  Rf5 {[%clk 0:01:28]} 67. Rb7 {[%clk 0:00:10]}  Rxg5 {[%clk 0:01:27]} 68. Ra7 {[%clk 0:00:11]}  Kg7 {[%clk 0:01:28]} 69. Rb7 {[%clk 0:00:11]}  Ra5 {[%clk 0:01:28]} 70. Rc7 {[%clk 0:00:11]}  g5 {[%clk 0:01:28]} 71. Rb7 {[%clk 0:00:11]}  Kg6 {[%clk 0:01:29]} 72. Rb6+ {[%clk 0:00:11]}  f6 {[%clk 0:01:29]} 73. Rb8 {[%clk 0:00:11]}  f5+ {[%clk 0:01:29]} 74. Ke3 {[%clk 0:00:11]}  Ra3+ {[%clk 0:01:29]} 75. Kd4 {[%clk 0:00:11]}  Kh5 {[%clk 0:01:30]} 76. Ke5 {[%clk 0:00:10]}  Kg4 {[%clk 0:01:29]} 77. Rb1 {[%clk 0:00:09]}  Ra5+ {[%clk 0:01:28]} 78. Kd4 {[%clk 0:00:09]}  f4 {[%clk 0:01:28]} 79. Kd3 {[%clk 0:00:08]}  Kf5 {[%clk 0:01:26]} 80. Rh1 {[%clk 0:00:07]}  Ra3+ {[%clk 0:01:24]} 81. Ke2 {[%clk 0:00:06]}  g4 {[%clk 0:01:23]} 82. Rh5+ {[%clk 0:00:05]}  Ke4 {[%clk 0:01:24]} 83. Rh8 {[%clk 0:00:06]}  Ra2+ {[%clk 0:01:24]} 84. Ke1 {[%clk 0:00:06]}  Kf3 {[%clk 0:01:25]} 85. Rb8 {[%clk 0:00:06]}  Ra1+ {[%clk 0:01:24]} 86. Kd2 {[%clk 0:00:06]}  g3 {[%clk 0:01:24]} 87. Rb1 {[%clk 0:00:04]}  Rxb1 {[%clk 0:01:24]} 0-1

[Event "December 19 Early 2023"]
[Site "https://www.chess.com"]
[Date "2023.12.19"]
[Round "8"]
[White "Aaditya Dhingra"]
[Black "Goltseva, Ekaterina"]
[Result "1-0"]
[Board "73"]
[TimeControl "180+1"]
[WhiteFideId "25678191"]
[BlackFideId "24173770"]
[WhiteElo "2269"]
[BlackElo "2139"]
[WhiteTeam "IND"]
[BlackTeam "RUS"]
[WhiteClock "0:01:30"]
[BlackClock "0:00:00"]

1. d4 {[%clk 0:03:00]}  d5 {[%clk 0:02:59]} 2. Nc3 {[%clk 0:02:59]}  Nf6 {[%clk 0:02:59]} 3. Bf4 {[%clk 0:02:59]}  e6 {[%clk 0:02:58]} 4. Nb5 {[%clk 0:02:57]}  Na6 {[%clk 0:02:58]} 5. e3 {[%clk 0:02:56]}  Be7 {[%clk 0:02:56]} 6. Nf3 {[%clk 0:02:52]}  O-O {[%clk 0:02:55]} 7. c4 {[%clk 0:02:52]}  c6 {[%clk 0:02:47]} 8. Nc3 {[%clk 0:02:51]}  dxc4 {[%clk 0:02:47]} 9. Bxc4 {[%clk 0:02:50]}  b5 {[%clk 0:02:46]} 10. Bd3 {[%clk 0:02:46]}  b4 {[%clk 0:02:44]} 11. Ne4 {[%clk 0:02:44]}  c5 {[%clk 0:02:41]} 12. Qc2 {[%clk 0:02:36]}  b3 {[%clk 0:02:03]} 13. Qxb3 {[%clk 0:02:26]}  Nb4 {[%clk 0:01:52]} 14. O-O {[%clk 0:02:21]}  Nxd3 {[%clk 0:01:46]} 15. Qxd3 {[%clk 0:02:19]}  Bb7 {[%clk 0:01:41]} 16. Nxf6+ {[%clk 0:02:17]}  Bxf6 {[%clk 0:01:42]} 17. Rfd1 {[%clk 0:02:08]}  Bxf3 {[%clk 0:01:35]} 18. gxf3 {[%clk 0:02:06]}  cxd4 {[%clk 0:01:31]} 19. Qe4 {[%clk 0:02:03]}  Qa5 {[%clk 0:01:21]} 20. exd4 {[%clk 0:02:03]}  Rad8 {[%clk 0:01:17]} 21. Be5 {[%clk 0:02:01]}  Bxe5 {[%clk 0:01:02]} 22. dxe5 {[%clk 0:02:02]}  Rd2 {[%clk 0:00:59]} 23. b4 {[%clk 0:01:56]}  Qd8 {[%clk 0:00:59]} 24. Rxd2 {[%clk 0:01:56]}  Qxd2 {[%clk 0:00:59]} 25. a3 {[%clk 0:01:42]}  h5 {[%clk 0:00:56]} 26. Re1 {[%clk 0:01:37]}  Rd8 {[%clk 0:00:52]} 27. Qe3 {[%clk 0:01:35]}  Qa2 {[%clk 0:00:36]} 28. Qxa7 {[%clk 0:01:33]}  Rd3 {[%clk 0:00:00]} 29. Qa8+ {[%clk 0:01:30]} 1-0